fUST/lending_fUST_20241229
["ID","MTS","AMOUNT","RATE_DAILY","PERIOD"]
[346942746,1735409448293,-500.0,0.00015806,2]
[346942747,1735409448302,-500.0,0.00015806,2]
[346942748,1735409448311,-500.0,0.00015806,2]
[346942749,1735409448321,-578.9,0.00015806,2]
[346942750,1735409448331,-3920.48,0.00015808,2]
[346942751,1735409448340,-500.0,0.00015808,2]
[346942752,1735409448354,-500.0,0.00015808,2]
[346942753,1735409448363,-500.0,0.00015808,2]
[346942754,1735409448373,-500.0,0.00015808,2]
[346942755,1735409448384,-500.0,0.00015808,2]
[346942756,1735409448393,-500.0,0.00015808,2]
[346942757,1735409448403,-500.0,0.00015808,2]
[346942758,1735409448412,-500.0,0.00015808,2]
[346942759,1735409448421,-500.0,0.00015808,2]
[346942760,1735409448437,-500.0,0.00015808,2]
[346942761,1735409448446,-500.0,0.00015808,2]
[346942762,1735409448455,-586.76,0.00015808,2]
[346942763,1735409448465,-500.0,0.00015808,2]
[346942764,1735409448475,-500.0,0.00015808,2]
[346942765,1735409448484,-151.0,0.00015808,2]
[346942766,1735409448493,-400.39,0.00015808,2]
[346942767,1735409448502,-151.0,0.00015808,2]
[346942768,1735409448511,-151.0,0.00015808,2]
[346942769,1735409448520,-151.0,0.00015808,2]
[346942770,1735409448530,-3486.43,0.00015808,2]
[346942771,1735409448539,-151.0,0.00015808,2]
[346942772,1735409448548,-600.47,0.00015808,2]
[346942773,1735409448558,-500.0,0.00015808,2]
[346942774,1735409448567,-151.0,0.00015808,2]
[346942775,1735409448576,-151.0,0.00015808,2]
[346942776,1735409448585,-246.25,0.0001581,2]
[346942777,1735409448595,-500.0,0.0001581,2]
[346942778,1735409448604,-500.0,0.00015811,2]
[346942779,1735409448613,-238.15,0.00015811,2]
[346942780,1735409448622,-500.0,0.00015811,2]
[346942781,1735409448631,-500.0,0.00015811,2]
[346942782,1735409448640,-500.0,0.00015811,2]
[346942783,1735409448649,-500.0,0.00015811,2]
[346942784,1735409448658,-199.6,0.00015811,2]
[346942785,1735409448668,-500.0,0.00015811,2]
[346942786,1735409448677,-500.0,0.00015811,2]
[346942787,1735409448685,-159.45,0.00015811,2]
[346942788,1735409448694,-500.0,0.00015811,2]
[346942789,1735409448703,-500.0,0.00015811,2]
[346942790,1735409448713,-500.0,0.00015811,2]
[346942791,1735409448721,-500.0,0.00015811,2]
[346942792,1735409448730,-500.0,0.00015811,2]
[346942793,1735409448739,-500.0,0.00015811,2]
[346942794,1735409448748,-500.0,0.00015811,2]
[346942795,1735409448757,-500.0,0.00015811,2]
[346942796,1735409448766,-500.0,0.00015811,2]
[346942797,1735409448775,-479.10360083,0.00015811,2]
[346942798,1735409448784,-500.0,0.00015811,2]
[346942799,1735409448793,-500.0,0.00015811,2]
[346942800,1735409448802,-364.48,0.00015811,2]
[346942801,1735409448811,-449.431259,0.00015811,2]
[346942802,1735409448820,-449.431259,0.00015811,2]
[346942803,1735409448829,-151.0,0.00015811,2]
[346942804,1735409448838,-151.0,0.00015811,2]
[346942805,1735409448849,-703.907684,0.00015811,2]
[346942806,1735409448858,-703.907684,0.00015811,2]
[346942807,1735409448868,-500.0,0.00015811,2]
[346942808,1735409448877,-151.0,0.00015811,2]
[346942809,1735409448886,-151.0,0.00015811,2]
[346942810,1735409448895,-500.0,0.00015811,2]
[346942811,1735409448904,-151.0,0.00015811,2]
[346942812,1735409448913,-151.0,0.00015811,2]
[346942813,1735409448922,-500.0,0.00015811,2]
[346942814,1735409448931,-500.0,0.00015811,2]
[346942815,1735409448940,-500.0,0.00015811,2]
[346942816,1735409448949,-403.766938,0.00015811,2]
[346942817,1735409448958,-403.766938,0.00015811,2]
[346942818,1735409448967,-477.146927,0.00015811,2]
[346942819,1735409448976,-477.146927,0.00015811,2]
[346942820,1735409448985,-151.0,0.00015811,2]
[346942821,1735409448994,-248.363047,0.00015811,2]
[346942822,1735409449004,-248.363047,0.00015811,2]
[346942823,1735409449014,-153.840585,0.00015811,2]
[346942824,1735409449023,-283.28,0.00015811,2]
[346942825,1735409449032,-246.538878,0.00015811,2]
[346942826,1735409449042,-246.538878,0.00015811,2]
[346942827,1735409449051,-500.0,0.00015811,2]
[346942828,1735409449060,-361.01,0.00015811,2]
[346942829,1735409449069,-1289.799582,0.00015811,2]
[346942830,1735409449078,-500.0,0.00015811,2]
[346942831,1735409449087,-1289.799582,0.00015811,2]
[346942832,1735409449098,-151.0,0.00015812,2]
[346942833,1735409449108,-151.0,0.00015812,2]
[346942834,1735409449117,-151.0,0.00015812,2]
[346942835,1735409449126,-621.733577,0.00015812,2]
[346942836,1735409449136,-750.068438,0.00015812,2]
[346942837,1735409449145,-161.124515,0.00015812,2]
[346942838,1735409449155,-621.733577,0.00015812,2]
[346942839,1735409449164,-750.068438,0.00015812,2]
[346942840,1735409449174,-161.124515,0.00015812,2]
[346942841,1735409449183,-196.742415,0.00015812,2]
[346942842,1735409449193,-500.0,0.00015814,2]
[346942843,1735409449202,-500.0,0.00015814,2]
[346942844,1735409449212,-500.0,0.00015814,2]
[346942845,1735409449221,-500.0,0.00015814,2]
[346942846,1735409449230,-151.0,0.00015814,2]
[346942847,1735409449239,-247.494936,0.00015814,2]
[346942848,1735409449248,-828.666108,0.00015814,2]
[346942849,1735409449258,-828.666108,0.00015814,2]
[346942850,1735409449267,-151.0,0.00015814,2]
[346942851,1735409449277,-500.0,0.00015814,2]
[346942852,1735409449286,-500.0,0.00015814,2]
[346942853,1735409449295,-228.63,0.00015814,2]
[346942854,1735409449305,-500.0,0.00015814,2]
[346942855,1735409449314,-253.16,0.00015815,2]
[346942856,1735409449323,-399.54,0.00015815,2]
[346942857,1735409449332,-361.89,0.00015815,2]
[346942858,1735409449341,-500.0,0.00015815,2]
[346942859,1735409449351,-500.0,0.00015815,2]
[346942860,1735409449360,-160.91,0.00015815,2]
[346942861,1735409449369,-664.2,0.00015815,2]
[346942862,1735409449379,-500.0,0.00015815,2]
[346942863,1735409449388,-500.0,0.00015815,2]
[346942864,1735409449398,-502.70866287,0.00015816,2]
[346942865,1735409449408,-500.0,0.00015816,2]
[346942866,1735409449416,-523.87,0.00015816,2]
[346942867,1735409449425,-190.603783,0.00016042,2]
[346942868,1735409449508,-500.0,0.0001608,2]
[346942869,1735409449518,-551.1344633,0.0001608,2]
[346942870,1735409449527,-500.0,0.0001608,2]
[346942871,1735409449537,-500.0,0.0001608,2]
[346942872,1735409449546,-500.0,0.0001608,2]
[346942873,1735409449555,-500.0,0.0001608,2]
[346942874,1735409449563,-3920.48,0.00016082,2]
[346942875,1735409449572,-500.0,0.00016082,2]
[346942876,1735409449581,-500.0,0.00016082,2]
[346942877,1735409449590,-500.0,0.00016082,2]
[346942878,1735409449601,-500.0,0.00016082,2]
[346942879,1735409449610,-500.0,0.00016082,2]
[346942880,1735409449619,-500.0,0.00016082,2]
[346942881,1735409449629,-481.01,0.00016082,2]
[346942882,1735409449639,-500.0,0.00016082,2]
[346942883,1735409449648,-500.0,0.00016082,2]
[346942884,1735409449658,-500.0,0.00016082,2]
[346942885,1735409449667,-610.5943336,0.00016082,2]
[346942886,1735409449676,-151.0,0.00016082,2]
[346942887,1735409449686,-151.0,0.00016082,2]
[346942888,1735409449695,-151.0,0.00016082,2]
[346942889,1735409449704,-151.0,0.00016082,2]
[346942890,1735409449714,-3486.43,0.00016082,2]
[346942891,1735409449724,-151.0,0.00016082,2]
[346942892,1735409449735,-500.0,0.00016082,2]
[346942893,1735409449744,-151.0,0.00016082,2]
[346942894,1735409449754,-151.0,0.00016082,2]
[346942895,1735409449764,-500.0,0.00016084,2]
[346942896,1735409449773,-500.0,0.00016085,2]
[346942897,1735409449782,-613.99,0.00016085,2]
[346942898,1735409449793,-500.0,0.00016085,2]
[346942899,1735409449803,-500.0,0.00016085,2]
[346942900,1735409449814,-500.0,0.00016085,2]
[346942901,1735409449823,-500.0,0.00016085,2]
[346942902,1735409449833,-311.82,0.00016085,2]
[346942903,1735409449844,-260.11,0.00016085,2]
[346942904,1735409449853,-403.1598932,0.00016085,2]
[346942905,1735409449862,-500.0,0.00016085,2]
[346942906,1735409449872,-284.8,0.00016085,2]
[346942907,1735409449883,-500.0,0.00016085,2]
[346942908,1735409449891,-500.0,0.00016085,2]
[346942909,1735409449902,-500.0,0.00016085,2]
[346942910,1735409449911,-562.85,0.00016085,2]
[346942911,1735409449920,-449.431259,0.00016085,2]
[346942912,1735409449929,-449.431259,0.00016085,2]
[346942913,1735409449938,-275.053841,0.00016085,2]
[346942914,1735409449947,-151.0,0.00016085,2]
[346942915,1735409449957,-703.907684,0.00016085,2]
[346942916,1735409449966,-703.907684,0.00016085,2]
[346942917,1735409449975,-500.0,0.00016085,2]
[346942918,1735409449984,-151.0,0.00016085,2]
[346942919,1735409449993,-151.0,0.00016085,2]
[346942920,1735409450002,-500.0,0.00016085,2]
[346942921,1735409450011,-151.0,0.00016085,2]
[346942922,1735409450020,-151.0,0.00016085,2]
[346942923,1735409450030,-500.0,0.00016085,2]
[346942924,1735409450039,-394.88,0.00016085,2]
[346942925,1735409450048,-269.85,0.00016085,2]
[346942926,1735409450058,-403.766938,0.00016085,2]
[346942927,1735409450068,-403.766938,0.00016085,2]
[346942928,1735409450077,-477.146927,0.00016085,2]
[346942929,1735409450087,-477.146927,0.00016085,2]
[346942930,1735409450097,-151.0,0.00016085,2]
[346942931,1735409450107,-248.363047,0.00016085,2]
[346942932,1735409450117,-248.363047,0.00016085,2]
[346942933,1735409450127,-246.538878,0.00016085,2]
[346942934,1735409450136,-246.538878,0.00016085,2]
[346942935,1735409450145,-500.0,0.00016085,2]
[346942936,1735409450154,-1289.799582,0.00016085,2]
[346942937,1735409450164,-500.0,0.00016085,2]
[346942938,1735409450173,-1289.799582,0.00016085,2]
[346942939,1735409450183,-151.0,0.00016086,2]
[346942940,1735409450193,-230.528561,0.00016086,2]
[346942941,1735409450203,-151.0,0.00016086,2]
[346942942,1735409450213,-230.528561,0.00016086,2]
[346942943,1735409450222,-151.0,0.00016086,2]
[346942944,1735409450231,-151.0,0.00016086,2]
[346942945,1735409450241,-151.0,0.00016086,2]
[346942946,1735409450251,-151.0,0.00016086,2]
[346942947,1735409450260,-621.733577,0.00016086,2]
[346942948,1735409450270,-750.068438,0.00016086,2]
[346942949,1735409450279,-161.124515,0.00016086,2]
[346942950,1735409450288,-621.733577,0.00016086,2]
[346942951,1735409450298,-750.068438,0.00016086,2]
[346942952,1735409450308,-161.124515,0.00016086,2]
[346942953,1735409450317,-196.742415,0.00016086,2]
[346942954,1735409450327,-500.0,0.00016088,2]
[346942955,1735409450336,-588.01,0.00016088,2]
[346942956,1735409450346,-500.0,0.00016088,2]
[346942957,1735409450355,-500.0,0.00016088,2]
[346942958,1735409450365,-500.0,0.00016088,2]
[346942959,1735409450375,-563.3,0.00016088,2]
[346942960,1735409450384,-664.2,0.00016089,2]
[346942961,1735409450393,-500.0,0.00016089,2]
[346942962,1735409450403,-500.0,0.00016089,2]
[346942963,1735409450413,-539.59004088,0.0001609,2]
[346942964,1735409450422,-523.87,0.0001609,2]
[346942965,1735409450436,-500.0,0.00016354,2]
[346942966,1735409450445,-500.0,0.00016354,2]
[346942967,1735409450454,-197.48,0.00016354,2]
[346942968,1735409450463,-500.0,0.00016354,2]
[346942969,1735409450474,-500.0,0.00016354,2]
[346942970,1735409450486,-3920.48,0.00016356,2]
[346942971,1735409450495,-500.0,0.00016356,2]
[346942972,1735409450506,-500.0,0.00016356,2]
[346942973,1735409450515,-500.0,0.00016356,2]
[346942974,1735409450524,-500.0,0.00016356,2]
[346942975,1735409450533,-500.0,0.00016356,2]
[346942976,1735409450542,-500.0,0.00016356,2]
[346942977,1735409450552,-621.81,0.00016356,2]
[346942978,1735409450561,-297.75,0.00016356,2]
[346942979,1735409450571,-3486.43,0.00016356,2]
[346942980,1735409450580,-151.0,0.00016359,2]
[346942981,1735409450589,-151.0,0.00016359,2]
[346942982,1735409450599,-151.0,0.00016359,2]
[346942983,1735409450608,-500.0,0.00016359,2]
[346942984,1735409450617,-500.0,0.00016359,2]
[346942985,1735409450628,-151.0,0.00016359,2]
[346942986,1735409450638,-828.666108,0.00016359,2]
[346942987,1735409450648,-828.666108,0.00016359,2]
[346942988,1735409450657,-324.32700461,0.00016359,2]
[346942989,1735409450666,-151.0,0.00016359,2]
[346942990,1735409450675,-474.36,0.00016359,2]
[346942991,1735409450684,-500.0,0.00016359,2]
[346942992,1735409450694,-151.0,0.00016359,2]
[346942993,1735409450704,-151.0,0.00016359,2]
[346942994,1735409450713,-151.0,0.00016359,2]
[346942995,1735409450723,-151.0,0.00016359,2]
[346942996,1735409450731,-151.0,0.00016359,2]
[346942997,1735409450740,-151.0,0.00016359,2]
[346942998,1735409450749,-162.756892,0.00016362,2]
[346942999,1735409450759,-162.756892,0.00016362,2]
[346943000,1735409450768,-500.0,0.00016362,2]
[346943001,1735409450777,-500.0,0.00016362,2]
[346943002,1735409450787,-664.2,0.00016363,2]
[346943003,1735409450796,-500.0,0.00016363,2]
[346943004,1735409450805,-246.538878,0.00016363,2]
[346943005,1735409450814,-246.538878,0.00016363,2]
[346943006,1735409450824,-1289.799582,0.00016363,2]
[346943007,1735409450833,-1289.799582,0.00016363,2]
[346943008,1735409450842,-523.87,0.00016364,2]
[346943009,1735409450853,-151.0,0.00016364,2]
[346943010,1735409450862,-477.146927,0.00016364,2]
[346943011,1735409450871,-477.146927,0.00016364,2]
[346943012,1735409450880,-151.57154,0.00016364,2]
[346943013,1735409450889,-248.363047,0.00016364,2]
[346943014,1735409450898,-248.363047,0.00016364,2]
[346943015,1735409450907,-200.0,0.00016438,2]
[346943016,1735409450916,-294.04532813,0.00016438,2]
[346943017,1735409450926,-500.0,0.00016438,2]
[346943018,1735409450935,-500.0,0.00016438,2]
[346943019,1735409450944,-500.0,0.00016438,2]
[346943020,1735409450953,-500.0,0.00016438,2]
[346943021,1735409450962,-500.0,0.00016438,2]
[346943022,1735409450971,-500.0,0.00016438,2]
[346943023,1735409450980,-425.3043646,0.00016438,2]
[346943024,1735409450990,-151.0,0.00016438,2]
[346943025,1735409450999,-151.0,0.00016438,2]
[346943026,1735409451008,-500.0,0.00016628,2]
[346943027,1735409451018,-500.0,0.00016628,2]
[346943028,1735409451027,-500.0,0.00016628,2]
[346943029,1735409451036,-3920.48,0.0001663,2]
[346943030,1735409451047,-500.0,0.0001663,2]
[346943031,1735409451056,-500.0,0.0001663,2]
[346943032,1735409451065,-500.0,0.0001663,2]
[346943033,1735409451075,-500.0,0.0001663,2]
[346943034,1735409451086,-500.0,0.0001663,2]
[346943035,1735409451096,-500.0,0.0001663,2]
[346943036,1735409451105,-3486.43,0.0001663,2]
[346943037,1735409451115,-362.7,0.00016633,2]
[346943038,1735409451125,-577.27,0.00016633,2]
[346943039,1735409451135,-449.431259,0.00016633,2]
[346943040,1735409451145,-449.431259,0.00016633,2]
[346943041,1735409451154,-151.0,0.00016633,2]
[346943042,1735409451163,-703.907684,0.00016633,2]
[346943043,1735409451173,-703.907684,0.00016633,2]
[346943044,1735409451182,-151.0,0.00016633,2]
[346943045,1735409451191,-151.0,0.00016633,2]
[346943046,1735409451200,-403.766938,0.00016633,2]
[346943047,1735409451209,-403.766938,0.00016633,2]
[346943048,1735409451218,-581.02,0.00016633,2]
[346943049,1735409451227,-151.0,0.00016634,2]
[346943050,1735409451236,-151.0,0.00016634,2]
[346943051,1735409451245,-621.733577,0.00016634,2]
[346943052,1735409451254,-750.068438,0.00016634,2]
[346943053,1735409451330,-161.124515,0.00016634,2]
[346943054,1735409451341,-621.733577,0.00016634,2]
[346943055,1735409451351,-750.068438,0.00016634,2]
[346943056,1735409451362,-161.124515,0.00016634,2]
[346943057,1735409451372,-196.742415,0.00016634,2]
[346943058,1735409451382,-151.0,0.00016636,2]
[346943059,1735409451392,-178.670493,0.00016636,2]
[346943060,1735409451401,-230.528561,0.00016636,2]
[346943061,1735409451412,-151.0,0.00016636,2]
[346943062,1735409451423,-230.528561,0.00016636,2]
[346943063,1735409451437,-151.0,0.00016636,2]
[346943064,1735409451446,-500.0,0.00016636,2]
[346943065,1735409451455,-500.0,0.00016636,2]
[346943066,1735409451464,-664.2,0.00016637,2]
[346943067,1735409451474,-166.42,0.00016637,2]
[346943068,1735409451483,-523.87,0.00016638,2]
[346943069,1735409451492,-198.53652378,0.00016684,2]
[346943070,1735409451501,-170.553,0.00016819,2]
[346943071,1735409451512,-500.0,0.00016902,2]
[346943072,1735409451521,-500.0,0.00016902,2]
[346943073,1735409451531,-500.0,0.00016902,2]
[346943074,1735409451541,-3920.48,0.00016904,2]
[346943075,1735409451550,-575.26,0.00016904,2]
[346943076,1735409451559,-500.0,0.00016904,2]
[346943077,1735409451568,-586.44,0.00016904,2]
[346943078,1735409451577,-626.47,0.00016904,2]
[346943079,1735409451586,-643.24,0.00016904,2]
[346943080,1735409451596,-357.21,0.00016904,2]
[346943081,1735409451605,-3486.43,0.00016904,2]
[346943082,1735409451614,-500.0,0.0001691,2]
[346943083,1735409451623,-500.0,0.0001691,2]
[346943084,1735409451632,-664.2,0.00016911,2]
[346943085,1735409451641,-523.87,0.00016912,2]
[346943086,1735409451650,-300.0,0.00016989,2]
[346943087,1735409451659,-160.51294875,0.00017095,2]
[346943088,1735409451668,-500.0,0.00017176,2]
[346943089,1735409451678,-500.0,0.00017176,2]
[346943090,1735409451687,-500.0,0.00017176,2]
[346943091,1735409451697,-3920.48,0.00017178,2]
[346943092,1735409451706,-500.0,0.00017178,2]
[346943093,1735409451715,-151.0,0.00017178,2]
[346943094,1735409451724,-151.0,0.00017178,2]
[346943095,1735409451733,-151.0,0.00017178,2]
[346943096,1735409451742,-3486.43,0.00017178,2]
[346943097,1735409451751,-270.873344,0.00017178,2]
[346943098,1735409451761,-151.0,0.00017178,2]
[346943099,1735409451770,-151.0,0.00017178,2]
[346943100,1735409451779,-151.0,0.00017181,2]
[346943101,1735409451789,-828.666108,0.00017181,2]
[346943102,1735409451799,-828.666108,0.00017181,2]
[346943103,1735409451810,-151.0,0.00017181,2]
[346943104,1735409451820,-246.538878,0.00017181,2]
[346943105,1735409451830,-246.538878,0.00017181,2]
[346943106,1735409451839,-1289.799582,0.00017181,2]
[346943107,1735409451849,-1289.799582,0.00017181,2]
[346943108,1735409451858,-151.0,0.00017182,2]
[346943109,1735409451868,-151.0,0.00017182,2]
[346943110,1735409451878,-151.0,0.00017182,2]
[346943111,1735409451888,-151.0,0.00017182,2]
[346943112,1735409451897,-151.0,0.00017182,2]
[346943113,1735409451907,-191.183964,0.00017182,2]
[346943114,1735409451918,-477.146927,0.00017182,2]
[346943115,1735409451927,-477.146927,0.00017182,2]
[346943116,1735409451936,-248.363047,0.00017182,2]
[346943117,1735409451945,-248.363047,0.00017182,2]
[346943118,1735409451954,-162.756892,0.00017184,2]
[346943119,1735409451963,-162.756892,0.00017184,2]
[346943120,1735409451972,-151.0,0.00017184,2]
[346943121,1735409451982,-151.0,0.00017184,2]
[346943122,1735409451992,-500.0,0.00017184,2]
[346943123,1735409452001,-500.0,0.00017184,2]
[346943124,1735409452011,-664.2,0.00017185,2]
[346943125,1735409452020,-523.87,0.00017186,2]
[346943126,1735409452030,-361.9,0.0001745,2]
[346943127,1735409452039,-500.0,0.0001745,2]
[346943128,1735409452049,-500.0,0.0001745,2]
[346943129,1735409452059,-3920.48,0.00017452,2]
[346943130,1735409452068,-408.84,0.00017452,2]
[346943131,1735409452077,-3486.43,0.00017452,2]
[346943132,1735409452087,-449.431259,0.00017455,2]
[346943133,1735409452098,-449.431259,0.00017455,2]
[346943134,1735409452107,-151.0,0.00017455,2]
[346943135,1735409452116,-703.907684,0.00017455,2]
[346943136,1735409452126,-703.907684,0.00017455,2]
[346943137,1735409452136,-151.0,0.00017455,2]
[346943138,1735409452146,-151.0,0.00017455,2]
[346943139,1735409452155,-403.766938,0.00017455,2]
[346943140,1735409452169,-403.766938,0.00017455,2]
[346943141,1735409452183,-151.0,0.00017456,2]
[346943142,1735409452197,-151.0,0.00017456,2]
[346943143,1735409452211,-621.733577,0.00017456,2]
[346943144,1735409452222,-750.068438,0.00017456,2]
[346943145,1735409452236,-161.124515,0.00017456,2]
[346943146,1735409452249,-621.733577,0.00017456,2]
[346943147,1735409452262,-750.068438,0.00017456,2]
[346943148,1735409452275,-161.124515,0.00017456,2]
[346943149,1735409452287,-196.742415,0.00017456,2]
[346943150,1735409452302,-500.0,0.00017458,2]
[346943151,1735409452317,-251.39216916,0.00017458,2]
[346943152,1735409452332,-664.2,0.00017459,2]
[346943153,1735409452344,-523.87,0.0001746,2]
[346943154,1735409452357,-500.0,0.00017724,2]
[346943155,1735409452369,-411.54501628,0.00017724,2]
[346943156,1735409452382,-3920.48,0.00017726,2]
[346943157,1735409452396,-3486.43,0.00017726,2]
[346943158,1735409452408,-230.528561,0.0001773,2]
[346943159,1735409452419,-151.0,0.0001773,2]
[346943160,1735409452431,-230.528561,0.0001773,2]
[346943161,1735409452445,-286.170708,0.0001773,2]
[346943162,1735409452458,-638.48,0.00017732,2]
[346943163,1735409452471,-664.2,0.00017733,2]
[346943164,1735409452484,-523.87,0.00017734,2]
[346943165,1735409452497,-500.0,0.00017808,4]
[346943166,1735409452513,-198.53652378,0.00017928,2]
[346943167,1735409452528,-500.0,0.00017998,2]
[346943168,1735409452542,-3920.48,0.00018,2]
[346943169,1735409452555,-3486.43,0.00018,2]
[346943170,1735409452567,-664.2,0.00018007,2]
[346943171,1735409452577,-523.87,0.00018008,2]
[346943172,1735409452590,-500.0,0.00018272,2]
[346943173,1735409452603,-3920.48,0.00018274,2]
[346943174,1735409452618,-246.538878,0.00018274,2]
[346943175,1735409452631,-246.538878,0.00018274,2]
[346943176,1735409452642,-1289.799582,0.00018274,2]
[346943177,1735409452654,-151.0,0.00018274,2]
[346943178,1735409452666,-1289.799582,0.00018274,2]
[346943179,1735409452678,-151.0,0.00018274,2]
[346943180,1735409452689,-151.0,0.00018274,2]
[346943181,1735409452699,-3486.43,0.00018274,2]
[346943182,1735409452711,-151.0,0.00018274,2]
[346943183,1735409452722,-232.207168,0.00018274,2]
[346943184,1735409452733,-151.0,0.00018277,2]
[346943185,1735409452744,-828.666108,0.00018277,2]
[346943186,1735409452757,-828.666108,0.00018277,2]
[346943187,1735409452769,-151.0,0.00018277,2]
[346943188,1735409452781,-477.146927,0.00018277,2]
[346943189,1735409452793,-477.146927,0.00018277,2]
[346943190,1735409452804,-248.363047,0.00018277,2]
[346943191,1735409452815,-248.363047,0.00018277,2]
[346943192,1735409452827,-151.0,0.0001828,2]
[346943193,1735409452839,-152.386917,0.0001828,2]
[346943194,1735409452849,-151.0,0.0001828,2]
[346943195,1735409452860,-151.0,0.0001828,2]
[346943196,1735409452871,-151.0,0.00018281,2]
[346943197,1735409452883,-664.2,0.00018281,2]
[346943198,1735409452895,-523.87,0.00018282,2]
[346943199,1735409452907,-790.293,0.00018397,2]
[346943200,1735409452920,-500.0,0.00018546,2]
[346943201,1735409452932,-3920.48,0.00018548,2]
[346943202,1735409452943,-3486.43,0.00018548,2]
[346943203,1735409452953,-664.2,0.00018555,2]
[346943204,1735409452964,-972.96032718,0.00018556,2]
[346943205,1735409452975,-25865.12784916,0.00018556,2]
[346943206,1735409452986,-449.431259,0.00018556,2]
[346943207,1735409452997,-449.431259,0.00018556,2]
[346943208,1735409453008,-151.0,0.00018556,2]
[346943209,1735409453020,-703.907684,0.00018556,2]
[346943210,1735409453031,-703.907684,0.00018556,2]
[346943211,1735409453042,-151.0,0.00018556,2]
[346943212,1735409453053,-523.87,0.00018556,2]
[346943213,1735409453064,-403.766938,0.00018556,2]
[346943214,1735409453075,-403.766938,0.00018556,2]
[346943215,1735409453086,-162.756892,0.00018611,2]
[346943216,1735409453098,-162.756892,0.00018611,2]
[346943217,1735409453109,-151.0,0.00018611,2]
[346943218,1735409453120,-151.0,0.00018611,2]
[346943219,1735409453132,-151.0,0.00018611,2]
[346943220,1735409453142,-151.0,0.00018611,2]
[346943221,1735409453152,-621.733577,0.00018611,2]
[346943222,1735409453164,-750.068438,0.00018611,2]
[346943223,1735409453174,-161.124515,0.00018611,2]
[346943224,1735409453286,-621.733577,0.00018611,2]
[346943225,1735409453296,-750.068438,0.00018611,2]
[346943226,1735409453306,-161.124515,0.00018611,2]
[346943227,1735409453315,-196.742415,0.00018611,2]
[346943228,1735409453325,-160.51294875,0.00018755,2]
[346943229,1735409453335,-500.0,0.0001882,2]
[346943230,1735409453344,-3920.48,0.00018822,2]
[346943231,1735409453353,-246.538878,0.00018822,2]
[346943232,1735409453363,-246.538878,0.00018822,2]
[346943233,1735409453372,-1289.799582,0.00018822,2]
[346943234,1735409453382,-151.0,0.00018822,2]
[346943235,1735409453392,-1289.799582,0.00018822,2]
[346943236,1735409453402,-198.347126,0.00018822,2]
[346943237,1735409453412,-151.0,0.00018822,2]
[346943238,1735409453423,-3486.43,0.00018822,2]
[346943239,1735409453436,-151.0,0.00018822,2]
[346943240,1735409453446,-664.2,0.00018829,2]
[346943241,1735409453456,-523.87,0.0001883,2]
[346943242,1735409453465,-2973.48385772,0.000189,2]
[346943243,1735409453475,-151.0,0.000189,2]
[346943244,1735409453486,-151.0,0.000189,2]
[346943245,1735409453495,-230.528561,0.000189,2]